[Event "EWIRCC 2019"]
[Site "Monte-Carlo"]
[Date "2019.12.01"]
[Round "11.10"]
[White "Salimova, Nurgyul"]
[Black "Sebag, Marie"]
[Result "1/2-1/2"]
[ECO "D11"]
[WhiteElo "2370"]
[BlackElo "2443"]
[Annotator "ChessBase"]
[PlyCount "61"]
[EventDate "2019.11.28"]
[EventType "swiss"]
[EventCountry "MNC"]
[SourceTitle "playchess.com"]
[Source "ChessBase"]
[SourceQuality "1"]
[TimeControl "5400+30"]

1. Nf3 {[%emt 1:15:12]} d5 {[%emt 1:15:11]} 2. d4 {[%emt 0:00:22]} Nf6 {[%emt 0:00:27]} 3. g3 {[%emt 0:00:23]} Bf5 {[%emt 0:00:29]} 4. Bg2 {[%emt 0:00:21]} e6 {[%emt 0:00:21]} 5. O-O {[%emt 0:00:22]} h6 {[%emt 0:00:26]} 6. c4 {[%emt 0:00:24]} c6 {[%emt 0:00:22]} 7. cxd5 {[%emt 0:01:01]} exd5 {[%emt 0:00:32]} 8. Nc3 {[%emt 0:00:33]} Be7 {[%emt 0:00:35]} 9. Bf4 {[%emt 0:00:34]} O-O {[%emt 0:00:25]} 10. Ne5 {[%emt 0:01:23]} Nbd7 {[%emt 0:00:24]} 11. Re1 {[%emt 0:00:38]} Re8 {[%emt 0:00:58]} 12. e4 {[%emt 0:01:45]} dxe4 {[%emt 0:00:30]} 13. Qb3 {[%emt 0:00:21]} Nxe5 {[%emt 0:02:22]} 14. dxe5 {[%emt 0:00:27]} Nd5 {[%emt 0:00:43]} 15. Bxe4 {[%emt 0:00:35]} Bxe4 {[%emt 0:02:49]} 16. Rxe4 {[%emt 0:00:24]} Nxc3 {[%emt 0:00:55]} 17. Qxc3 {[%emt 0:00:56]} Qd5 {[%emt 0:00:44]} 18. Rd4 {[%emt 0:00:39]} Qe6 {[%emt 0:00:23]} 19. Qb3 {[%emt 0:01:31]} Bc5 {[%emt 0:03:47]} 20. Qxe6 {[%emt 0:00:23]} Rxe6 {[%emt 0:00:21]} 21. Rd7 {[%emt 0:00:21]} g5 {[%emt 0:00:26]} 22. Be3 {[%emt 0:00:41]} Bxe3 {[%emt 0:00:41]} 23. fxe3 {[%emt 0:00:21]} Rxe5 {[%emt 0:00:21]} 24. Rf1 {[%emt 0:00:22]} f5 {[%emt 0:02:31]} 25. Rxb7 {[%emt 0:00:23]} a5 {[%emt 0:00:42]} 26. Rd1 {[%emt 0:00:34]} Rxe3 {[%emt 0:01:51]} 27. Rd6 {[%emt 0:00:22]} Rae8 {[%emt 0:01:01]} 28. Rg6+ {[%emt 0:00:23]} Kf8 {[%emt 0:00:21]} 29. Rf6+ {[%emt 0:00:22]} Kg8 {[%emt 0:00:21]} 30. Rg6+ {[%emt 0:00:21]} Kf8 {[%emt 0:00:20]} 31. Rf6+ {[%emt 0:13:06]} 1/2-1/2

[Event "EWIRCC 2019"]
[Site "Monte-Carlo"]
[Date "2019.12.01"]
[Round "11.11"]
[White "Bodnaruk, Anastasia"]
[Black "Gaprindashvili, Nona"]
[Result "1-0"]
[ECO "B00"]
[WhiteElo "2412"]
[BlackElo "2275"]
[Annotator "ChessBase"]
[PlyCount "111"]
[EventDate "2019.11.28"]
[EventType "swiss"]
[EventCountry "MNC"]
[SourceTitle "playchess.com"]
[Source "ChessBase"]
[SourceQuality "1"]
[TimeControl "5400+30"]

1. e4 {[%emt 1:15:12]} b6 {[%emt 1:15:11]} 2. d4 {[%emt 0:00:24]} Bb7 {[%emt 0:00:20]} 3. Nc3 {[%emt 0:00:22]} e6 {[%emt 0:00:24]} 4. a3 {[%emt 0:00:53]} g6 {[%emt 0:00:28]} 5. f4 {[%emt 0:00:29]} d5 {[%emt 0:00:57]} 6. e5 {[%emt 0:00:29]} h5 {[%emt 0:00:49]} 7. Nf3 {[%emt 0:00:46]} Nh6 {[%emt 0:00:23]} 8. Be3 {[%emt 0:00:55]} Nf5 {[%emt 0:00:32]} 9. Bf2 {[%emt 0:00:24]} c5 {[%emt 0:00:21]} 10. Bd3 {[%emt 0:01:07]} Ba6 {[%emt 0:00:50]} 11. Bxa6 {[%emt 0:03:03]} Nxa6 {[%emt 0:00:23]} 12. g3 {[%emt 0:00:30]} Qd7 {[%emt 0:00:37]} 13. O-O {[%emt 0:00:49]} cxd4 {[%emt 0:01:31]} 14. Nxd4 {[%emt 0:00:23]} Nxd4 {[%emt 0:00:23]} 15. Bxd4 {[%emt 0:00:21]} Nc5 {[%emt 0:00:38]} 16. Qe2 {[%emt 0:01:08]} Be7 {[%emt 0:00:46]} 17. Rad1 {[%emt 0:00:39]} Qc6 {[%emt 0:00:33]} 18. b4 {[%emt 0:02:49]} Nd7 {[%emt 0:01:54]} 19. Nb1 {[%emt 0:00:42]} Rc8 {[%emt 0:00:25]} 20. c3 {[%emt 0:00:26]} a5 {[%emt 0:01:05]} 21. Nd2 {[%emt 0:00:41]} Kf8 {[%emt 0:00:33]} 22. h3 {[%emt 0:00:50]} Kg7 {[%emt 0:00:23]} 23. Kg2 {[%emt 0:02:15]} Qa4 {[%emt 0:00:59]} 24. g4 {[%emt 0:02:07]} hxg4 {[%emt 0:01:12]} 25. hxg4 {[%emt 0:00:21]} Qxa3 {[%emt 0:00:23]} 26. f5 {[%emt 0:00:43]} Bg5 {[%emt 0:00:41]} 27. Nf3 {[%emt 0:01:37]} Bf4 {[%emt 0:00:58]} 28. f6+ {[%emt 0:01:37]} Kg8 {[%emt 0:00:53]} 29. Ra1 {[%emt 0:00:25]} Qb3 {[%emt 0:00:24]} 30. Rfb1 {[%emt 0:00:30]} Qc4 {[%emt 0:00:22]} 31. Qxc4 {[%emt 0:00:22]} Rxc4 {[%emt 0:01:06]} 32. bxa5 {[%emt 0:02:41]} bxa5 {[%emt 0:00:22]} 33. Rxa5 {[%emt 0:00:00]} Rc8 {[%emt 0:00:24]} 34. Ra7 {[%emt 0:00:00]} Nf8 {[%emt 0:00:44]} 35. Rbb7 {[%emt 0:00:17]} Rh7 {[%emt 0:02:18]} 36. g5 {[%emt 0:00:22]} Rh5 {[%emt 0:00:31]} 37. Rxf7 {[%emt 0:00:34]} Bxg5 {[%emt 0:00:23]} 38. Rg7+ {[%emt 0:00:58]} Kh8 {[%emt 0:00:22]} 39. Rgc7 {[%emt 0:00:24]} Rd8 {[%emt 0:00:32]} 40. Bc5 {[%emt 0:00:32]} Bh6 {[%emt 0:02:05]} 41. Rf7 {[%emt 0:00:46]} Rb8 {[%emt 0:00:46]} 42. Kg3 {[%emt 0:00:40]} Rc8 {[%emt 0:00:37]} 43. Rfc7 {[%emt 0:00:28]} Rxc7 {[%emt 0:00:28]} 44. Rxc7 {[%emt 0:00:21]} Kg8 {[%emt 0:00:23]} 45. Bd6 {[%emt 0:00:31]} Rf5 {[%emt 0:01:02]} 46. Nd4 {[%emt 0:00:46]} Bf4+ {[%emt 0:01:01]} 47. Kf3 {[%emt 0:00:25]} Rxf6 {[%emt 0:00:56]} 48. exf6 {[%emt 0:00:24]} Bxd6 {[%emt 0:00:22]} 49. Rg7+ {[%emt 0:00:36]} Kh8 {[%emt 0:00:22]} 50. Kg4 {[%emt 0:00:39]} Be5 {[%emt 0:01:08]} 51. Kg5 {[%emt 0:00:22]} Bxd4 {[%emt 0:03:07]} 52. cxd4 {[%emt 0:00:21]} e5 {[%emt 0:00:21]} 53. dxe5 {[%emt 0:00:35]} Ne6+ {[%emt 0:00:20]} 54. Kxg6 Nxg7 {[%emt 0:00:21]} 55. fxg7+ {[%emt 0:00:44]} Kg8 {[%emt 0:00:21]} 56. e6 {[%emt 0:00:21]} 1-0

[Event "EWIRCC 2019"]
[Site "Monte-Carlo"]
[Date "2019.12.01"]
[Round "11.12"]
[White "Antova, Gabriela"]
[Black "Daulyte-Cornette, Deimante"]
[Result "1/2-1/2"]
[ECO "A21"]
[WhiteElo "2314"]
[BlackElo "2405"]
[Annotator "ChessBase"]
[PlyCount "87"]
[EventDate "2019.11.28"]
[EventType "swiss"]
[EventCountry "MNC"]
[SourceTitle "playchess.com"]
[Source "ChessBase"]
[SourceQuality "1"]
[TimeControl "5400+30"]

1. d4 {[%emt 1:15:12]} d6 {[%emt 1:15:11]} 2. c4 {[%emt 0:00:34]} e5 {[%emt 0:00:24]} 3. Nc3 {[%emt 0:00:31]} exd4 {[%emt 0:00:26]} 4. Qxd4 {[%emt 0:00:21]} Nc6 {[%emt 0:00:22]} 5. Qd2 {[%emt 0:00:22]} Nf6 {[%emt 0:00:29]} 6. b3 {[%emt 0:00:50]} a5 {[%emt 0:00:29]} 7. Bb2 {[%emt 0:00:23]} a4 {[%emt 0:00:50]} 8. Rd1 {[%emt 0:02:16]} axb3 {[%emt 0:00:31]} 9. axb3 {[%emt 0:00:21]} g6 {[%emt 0:03:27]} 10. Nf3 {[%emt 0:03:51]} Bg7 {[%emt 0:00:26]} 11. g3 {[%emt 0:02:02]} O-O {[%emt 0:00:33]} 12. Bg2 {[%emt 0:00:21]} Be6 {[%emt 0:01:39]} 13. O-O {[%emt 0:00:26]} Nd7 {[%emt 0:01:00]} 14. Ng5 {[%emt 0:02:38]} Nc5 {[%emt 0:00:26]} 15. Nxe6 {[%emt 0:01:12]} fxe6 {[%emt 0:00:22]} 16. Qe3 {[%emt 0:01:31]} Qe7 {[%emt 0:00:29]} 17. Rd2 {[%emt 0:02:14]} Rfe8 {[%emt 0:05:40]} 18. Ne4 {[%emt 0:00:30]} Nxe4 {[%emt 0:00:35]} 19. Bxe4 {[%emt 0:00:34]} Bxb2 {[%emt 0:00:38]} 20. Rxb2 {[%emt 0:00:21]} Ra3 {[%emt 0:00:32]} 21. Qd2 {[%emt 0:01:33]} Ne5 {[%emt 0:01:55]} 22. Qb4 {[%emt 0:00:50]} Ra7 {[%emt 0:00:24]} 23. h4 {[%emt 0:00:37]} c6 {[%emt 0:00:58]} 24. Qc3 {[%emt 0:00:30]} Qg7 {[%emt 0:00:38]} 25. Rd2 {[%emt 0:00:25]} d5 {[%emt 0:00:33]} 26. cxd5 {[%emt 0:00:31]} exd5 {[%emt 0:00:26]} 27. Bg2 {[%emt 0:00:26]} Raa8 {[%emt 0:00:53]} 28. e4 {[%emt 0:00:32]} dxe4 {[%emt 0:00:41]} 29. Bxe4 {[%emt 0:00:21]} Rf8 {[%emt 0:00:48]} 30. Kg2 {[%emt 0:00:41]} Rf7 {[%emt 0:01:43]} 31. Rfd1 {[%emt 0:00:42]} Raf8 {[%emt 0:00:21]} 32. f4 {[%emt 0:00:33]} Ng4 {[%emt 0:00:27]} 33. Qxg7+ {[%emt 0:00:27]} Kxg7 {[%emt 0:00:25]} 34. Kf3 {[%emt 0:00:25]} Nf6 {[%emt 0:00:39]} 35. Rd8 {[%emt 0:00:53]} Rxd8 {[%emt 0:00:31]} 36. Rxd8 {[%emt 0:00:21]} Re7 {[%emt 0:00:25]} 37. Bd3 {[%emt 0:00:47]} h5 {[%emt 0:01:42]} 38. Bc4 {[%emt 0:00:45]} Ng4 {[%emt 0:00:26]} 39. Rg8+ {[%emt 0:00:37]} Kh7 {[%emt 0:00:22]} 40. Rf8 {[%emt 0:00:30]} Kg7 {[%emt 0:00:34]} 41. Rg8+ {[%emt 0:00:25]} Kh7 {[%emt 0:00:25]} 42. Rf8 {[%emt 0:00:21]} Kg7 {[%emt 0:00:39]} 43. Rg8+ {[%emt 0:00:22]} Kh7 {[%emt 0:00:21]} 44. Rf8 {[%emt 0:00:21]} 1/2-1/2

[Event "EWIRCC 2019"]
[Site "Monte-Carlo"]
[Date "2019.12.01"]
[Round "11.13"]
[White "Socko, Monika"]
[Black "Unuk, Laura"]
[Result "0-1"]
[ECO "E12"]
[WhiteElo "2417"]
[BlackElo "2298"]
[Annotator "ChessBase"]
[PlyCount "82"]
[EventDate "2019.11.28"]
[EventType "swiss"]
[EventCountry "MNC"]
[SourceTitle "playchess.com"]
[Source "ChessBase"]
[SourceQuality "1"]
[TimeControl "5400+30"]

1. d4 {[%emt 1:15:11]} Nf6 {[%emt 1:15:13]} 2. c4 {[%emt 0:00:21]} e6 {[%emt 0:00:22]} 3. Nf3 {[%emt 0:00:22]} b6 {[%emt 0:00:21]} 4. Bf4 {[%emt 0:00:22]} Bb7 {[%emt 0:00:39]} 5. e3 {[%emt 0:00:22]} Bb4+ {[%emt 0:01:18]} 6. Nfd2 {[%emt 0:00:22]} O-O {[%emt 0:00:38]} 7. a3 {[%emt 0:00:45]} Be7 {[%emt 0:00:26]} 8. Nc3 {[%emt 0:00:22]} d5 {[%emt 0:00:50]} 9. Be2 {[%emt 0:01:58]} c5 {[%emt 0:01:50]} 10. dxc5 {[%emt 0:00:52]} bxc5 {[%emt 0:01:11]} 11. O-O {[%emt 0:01:21]} d4 {[%emt 0:01:22]} 12. Na4 {[%emt 0:02:21]} Nc6 {[%emt 0:00:36]} 13. Bf3 {[%emt 0:00:55]} Qc8 {[%emt 0:01:44]} 14. Bg5 {[%emt 0:01:33]} Nd7 {[%emt 0:03:53]} 15. Bxe7 {[%emt 0:02:07]} Nxe7 {[%emt 0:00:23]} 16. b4 {[%emt 0:01:06]} dxe3 {[%emt 0:01:45]} 17. fxe3 {[%emt 0:00:21]} cxb4 {[%emt 0:00:23]} 18. axb4 {[%emt 0:00:25]} Ne5 {[%emt 0:00:31]} 19. Nc5 {[%emt 0:03:25]} Bxf3 {[%emt 0:01:19]} 20. gxf3 {[%emt 0:00:22]} a5 {[%emt 0:01:56]} 21. f4 {[%emt 0:00:21]} N5g6 {[%emt 0:00:24]} 22. Qb3 {[%emt 0:02:36]} axb4 {[%emt 0:00:31]} 23. Rxa8 {[%emt 0:01:06]} Qxa8 {[%emt 0:00:23]} 24. Qxb4 {[%emt 0:00:21]} Nf5 {[%emt 0:01:52]} 25. Qc3 {[%emt 0:00:56]} Nfh4 {[%emt 0:01:07]} 26. Rf2 {[%emt 0:00:46]} Qc6 {[%emt 0:00:28]} 27. Nce4 {[%emt 0:00:41]} f5 {[%emt 0:01:17]} 28. Ng5 {[%emt 0:01:00]} e5 {[%emt 0:00:32]} 29. c5 {[%emt 0:00:34]} exf4 {[%emt 0:00:27]} 30. Qc4+ {[%emt 0:00:30]} Kh8 {[%emt 0:00:30]} 31. exf4 {[%emt 0:00:30]} h6 {[%emt 0:00:24]} 32. Ngf3 {[%emt 0:00:43]} Rc8 {[%emt 0:00:28]} 33. Nxh4 {[%emt 0:01:05]} Nxh4 {[%emt 0:00:23]} 34. Re2 {[%emt 0:00:24]} Kh7 {[%emt 0:00:31]} 35. Nb3 {[%emt 0:00:26]} Qf3 {[%emt 0:00:47]} 36. Nd2 {[%emt 0:00:43]} Qg4+ {[%emt 0:00:41]} 37. Kf1 {[%emt 0:00:20]} Qh3+ {[%emt 0:00:47]} 38. Ke1 {[%emt 0:00:23]} Qg4 {[%emt 0:00:27]} 39. Qd4 {[%emt 0:00:34]} Ng2+ {[%emt 0:00:25]} 40. Kf1 {[%emt 0:00:26]} Nxf4 {[%emt 0:00:25]} 41. Rf2 {[%emt 0:00:22]} Qd1# {[%emt 0:01:01]} 0-1

[Event "EWIRCC 2019"]
[Site "Monte-Carlo"]
[Date "2019.12.01"]
[Round "11.14"]
[White "Mkrtchian, Lilit"]
[Black "Muetsch, Annmarie"]
[Result "1-0"]
[ECO "A26"]
[WhiteElo "2402"]
[BlackElo "2240"]
[Annotator "ChessBase"]
[PlyCount "165"]
[EventDate "2019.11.28"]
[EventType "swiss"]
[EventCountry "MNC"]
[SourceTitle "playchess.com"]
[Source "ChessBase"]
[SourceQuality "1"]
[TimeControl "5400+30"]

1. c4 {[%emt 1:15:12]} Nf6 {[%emt 1:15:12]} 2. g3 {[%emt 0:00:26]} g6 {[%emt 0:00:25]} 3. Bg2 {[%emt 0:00:22]} Bg7 {[%emt 0:00:23]} 4. Nc3 {[%emt 0:00:21]} O-O {[%emt 0:00:30]} 5. e4 {[%emt 0:00:22]} d6 {[%emt 0:00:27]} 6. Nge2 {[%emt 0:00:21]} e5 {[%emt 0:00:35]} 7. O-O {[%emt 0:00:29]} Nc6 {[%emt 0:00:40]} 8. d3 {[%emt 0:00:22]} Ne8 {[%emt 0:01:15]} 9. h3 {[%emt 0:00:52]} f5 {[%emt 0:00:46]} 10. exf5 {[%emt 0:01:30]} Bxf5 {[%emt 0:01:13]} 11. Be3 {[%emt 0:00:27]} Nf6 {[%emt 0:01:02]} 12. d4 {[%emt 0:01:33]} exd4 {[%emt 0:00:35]} 13. Nxd4 {[%emt 0:00:21]} Nxd4 {[%emt 0:00:44]} 14. Bxd4 {[%emt 0:00:22]} c6 {[%emt 0:01:00]} 15. Qd2 {[%emt 0:02:45]} Qc7 {[%emt 0:02:35]} 16. Rad1 {[%emt 0:00:33]} Rad8 {[%emt 0:00:33]} 17. b3 {[%emt 0:00:24]} Be6 {[%emt 0:02:12]} 18. Rfe1 {[%emt 0:00:38]} Bf5 {[%emt 0:01:56]} 19. Be3 {[%emt 0:02:59]} Qa5 {[%emt 0:03:41]} 20. Bd4 {[%emt 0:04:53]} Rf7 {[%emt 0:01:20]} 21. Qb2 {[%emt 0:00:48]} Qc7 {[%emt 0:00:58]} 22. Ne2 {[%emt 0:00:41]} g5 {[%emt 0:01:43]} 23. Bc3 {[%emt 0:00:35]} Qc8 {[%emt 0:00:53]} 24. Kh2 {[%emt 0:00:43]} c5 {[%emt 0:00:31]} 25. Ng1 {[%emt 0:01:09]} h6 {[%emt 0:00:37]} 26. Qd2 {[%emt 0:00:29]} Kh8 {[%emt 0:00:31]} 27. Re2 {[%emt 0:00:56]} Qc7 {[%emt 0:00:42]} 28. Rde1 {[%emt 0:00:26]} b6 {[%emt 0:00:27]} 29. Bxf6 {[%emt 0:01:20]} Bxf6 {[%emt 0:00:28]} 30. Bd5 {[%emt 0:00:46]} Rg7 {[%emt 0:00:28]} 31. Re8+ {[%emt 0:00:24]} Rxe8 {[%emt 0:00:24]} 32. Rxe8+ {[%emt 0:00:21]} Kh7 {[%emt 0:00:22]} 33. Be4 {[%emt 0:01:21]} Bxe4 {[%emt 0:00:28]} 34. Rxe4 {[%emt 0:00:21]} Re7 {[%emt 0:00:38]} 35. Qd3 {[%emt 0:00:31]} Kg7 {[%emt 0:00:35]} 36. Nf3 {[%emt 0:00:54]} Qb7 {[%emt 0:00:35]} 37. Nd2 {[%emt 0:00:31]} Qd7 {[%emt 0:00:35]} 38. Qd5 {[%emt 0:00:34]} Bd4 {[%emt 0:00:33]} 39. Rxe7+ {[%emt 0:00:26]} Qxe7 {[%emt 0:00:21]} 40. Ne4 {[%emt 0:00:21]} Be5 {[%emt 0:00:31]} 41. Kg2 {[%emt 0:00:22]} Qf7 {[%emt 0:00:43]} 42. Qd3 {[%emt 0:00:37]} Qe6 {[%emt 0:00:25]} 43. Nd2 {[%emt 0:00:29]} Bd4 {[%emt 0:00:32]} 44. Qf3 {[%emt 0:00:29]} Qf7 {[%emt 0:00:25]} 45. Ne4 {[%emt 0:00:25]} Be5 {[%emt 0:00:31]} 46. Qd3 {[%emt 0:00:43]} Qe6 {[%emt 0:00:24]} 47. Nd2 {[%emt 0:00:31]} Bd4 {[%emt 0:00:25]} 48. Nf3 {[%emt 0:00:21]} Bf6 {[%emt 0:00:24]} 49. Nd2 {[%emt 0:01:03]} Bd4 {[%emt 0:00:24]} 50. Qe4 {[%emt 0:00:30]} Qxe4+ {[%emt 0:00:55]} 51. Nxe4 {[%emt 0:00:21]} Be5 {[%emt 0:00:22]} 52. Kf3 {[%emt 0:00:34]} Kg6 {[%emt 0:00:22]} 53. Ke3 {[%emt 0:00:39]} Kf5 {[%emt 0:00:25]} 54. Nd2 {[%emt 0:00:35]} Bd4+ {[%emt 0:00:24]} 55. Ke2 {[%emt 0:00:29]} h5 {[%emt 0:00:34]} 56. f3 {[%emt 0:00:29]} g4 {[%emt 0:00:40]} 57. hxg4+ {[%emt 0:00:46]} hxg4 {[%emt 0:00:21]} 58. Ne4 {[%emt 0:00:25]} Be5 {[%emt 0:00:55]} 59. Ke3 {[%emt 0:00:36]} Bd4+ {[%emt 0:00:23]} 60. Ke2 {[%emt 0:00:21]} Be5 {[%emt 0:00:35]} 61. Nf2 {[%emt 0:00:21]} Bxg3 {[%emt 0:00:33]} 62. Nxg4 {[%emt 0:00:22]} Bf4 {[%emt 0:00:33]} 63. Kd3 {[%emt 0:00:25]} Bg5 {[%emt 0:00:33]} 64. Nf2 {[%emt 0:00:40]} Bf4 {[%emt 0:00:27]} 65. Ne4 {[%emt 0:00:28]} Be5 {[%emt 0:00:25]} 66. Nf2 {[%emt 0:00:32]} Kf4 {[%emt 0:00:25]} 67. Ke2 {[%emt 0:00:22]} Kf5 {[%emt 0:00:29]} 68. Nd3 {[%emt 0:00:23]} Bd4 {[%emt 0:00:26]} 69. Ne1 {[%emt 0:00:43]} Kf4 {[%emt 0:00:37]} 70. Ng2+ {[%emt 0:00:21]} Kf5 {[%emt 0:00:25]} 71. Ne3+ {[%emt 0:00:21]} Ke5 {[%emt 0:00:26]} 72. Nd5 {[%emt 0:00:22]} Kf5 {[%emt 0:00:29]} 73. Nc7 {[%emt 0:00:24]} Be5 {[%emt 0:00:39]} 74. Nb5 {[%emt 0:00:52]} a5 {[%emt 0:00:29]} 75. a4 {[%emt 0:00:29]} Kg5 {[%emt 0:00:37]} 76. Nc7 {[%emt 0:00:23]} Bf6 {[%emt 0:00:29]} 77. Nd5 {[%emt 0:00:27]} Bd8 {[%emt 0:00:24]} 78. Kd3 {[%emt 0:00:26]} Kf5 {[%emt 0:00:26]} 79. Ke3 {[%emt 0:00:21]} Bg5+ {[%emt 0:00:34]} 80. f4 {[%emt 0:00:22]} Bd8 {[%emt 0:00:35]} 81. Kf3 {[%emt 0:00:21]} Ke6 {[%emt 0:00:28]} 82. Ke4 {[%emt 0:00:21]} Kf7 {[%emt 0:00:37]} 83. Kf5 {[%emt 0:00:25]} 1-0

[Event "EWIRCC 2019"]
[Site "Monte-Carlo"]
[Date "2019.12.01"]
[Round "11.15"]
[White "Bensdorp-De Labaca, Marlies"]
[Black "Worek, Joanna"]
[Result "1-0"]
[ECO "A57"]
[WhiteElo "2228"]
[BlackElo "2316"]
[Annotator "ChessBase"]
[PlyCount "135"]
[EventDate "2019.11.28"]
[EventType "swiss"]
[EventCountry "MNC"]
[SourceTitle "playchess.com"]
[Source "ChessBase"]
[SourceQuality "1"]
[TimeControl "5400+30"]

1. d4 {[%emt 1:15:11]} Nf6 {[%emt 1:15:11]} 2. c4 {[%emt 0:00:22]} c5 {[%emt 0:00:37]} 3. d5 {[%emt 0:00:24]} b5 {[%emt 0:01:29]} 4. Qc2 {[%emt 0:00:22]} g6 {[%emt 0:01:56]} 5. e4 {[%emt 0:00:27]} bxc4 {[%emt 0:00:29]} 6. Bxc4 {[%emt 0:00:31]} d6 {[%emt 0:00:27]} 7. Nf3 {[%emt 0:00:46]} Bg7 {[%emt 0:00:22]} 8. O-O {[%emt 0:00:29]} O-O {[%emt 0:00:22]} 9. h3 {[%emt 0:00:26]} a5 {[%emt 0:01:04]} 10. Bf4 {[%emt 0:01:09]} Ba6 {[%emt 0:00:28]} 11. Nbd2 {[%emt 0:00:24]} Nbd7 {[%emt 0:01:00]} 12. Rad1 {[%emt 0:00:40]} Ne8 {[%emt 0:01:36]} 13. Rfe1 {[%emt 0:00:29]} Nb6 {[%emt 0:02:30]} 14. b3 {[%emt 0:00:38]} a4 {[%emt 0:00:30]} 15. e5 {[%emt 0:00:29]} axb3 {[%emt 0:00:23]} 16. axb3 {[%emt 0:00:21]} Nc7 {[%emt 0:01:41]} 17. exd6 {[%emt 0:00:30]} exd6 {[%emt 0:00:22]} 18. Ne4 {[%emt 0:00:21]} Nc8 {[%emt 0:00:22]} 19. Bg5 {[%emt 0:00:55]} f6 {[%emt 0:00:46]} 20. Bf4 {[%emt 0:00:21]} Kh8 {[%emt 0:00:29]} 21. Qc1 {[%emt 0:02:52]} Bxc4 {[%emt 0:01:31]} 22. bxc4 {[%emt 0:00:22]} Ra4 {[%emt 0:00:28]} 23. Qc2 {[%emt 0:00:32]} Rb4 {[%emt 0:00:23]} 24. Bd2 {[%emt 0:00:47]} Rb8 {[%emt 0:00:21]} 25. Bc3 {[%emt 0:02:11]} Nb6 {[%emt 0:01:01]} 26. Ba5 {[%emt 0:01:03]} Nc8 {[%emt 0:02:26]} 27. Rb1 {[%emt 0:00:35]} Ra8 {[%emt 0:01:30]} 28. Qd2 {[%emt 0:01:18]} Ra7 {[%emt 0:00:27]} 29. Rb8 {[%emt 0:00:29]} Qd7 {[%emt 0:00:27]} 30. Bc3 {[%emt 0:02:09]} Na6 {[%emt 0:00:42]} 31. Rbb1 {[%emt 0:01:02]} h6 {[%emt 0:00:25]} 32. Qb2 {[%emt 0:00:25]} Qf7 {[%emt 0:00:27]} 33. Qd2 {[%emt 0:01:24]} Kg8 {[%emt 0:00:52]} 34. Ng3 {[%emt 0:00:40]} Nc7 {[%emt 0:01:25]} 35. Re2 {[%emt 0:01:15]} Ra4 {[%emt 0:00:22]} 36. Qd3 {[%emt 0:00:43]} Ra3 {[%emt 0:00:21]} 37. Qc2 {[%emt 0:00:34]} Na6 {[%emt 0:00:55]} 38. Qb2 {[%emt 0:00:42]} Rxc3 {[%emt 0:02:53]} 39. Qxc3 f5 {[%emt 0:00:00]} 40. Qe1 {[%emt 0:00:51]} Nb4 {[%emt 0:00:00]} 41. Re6 {[%emt 0:00:43]} g5 {[%emt 0:00:00]} 42. Qd2 {[%emt 0:00:40]} g4 {[%emt 0:00:00]} 43. hxg4 {[%emt 0:00:43]} fxg4 {[%emt 0:00:10]} 44. Nh4 {[%emt 0:00:25]} Nb6 {[%emt 0:00:32]} 45. Rc1 {[%emt 0:00:48]} Qxf2+ {[%emt 0:01:38]} 46. Qxf2 {[%emt 0:00:33]} Rxf2 {[%emt 0:00:22]} 47. Nhf5 {[%emt 0:01:29]} Bf8 {[%emt 0:01:17]} 48. Nxh6+ {[%emt 0:00:30]} Bxh6 {[%emt 0:00:35]} 49. Rxh6 {[%emt 0:00:21]} Rf4 {[%emt 0:00:21]} 50. Rxd6 {[%emt 0:00:36]} Nxc4 {[%emt 0:00:21]} 51. Rd7 {[%emt 0:00:35]} Ne5 {[%emt 0:00:27]} 52. Rd8+ {[%emt 0:01:01]} Kf7 {[%emt 0:00:46]} 53. Rxc5 {[%emt 0:00:25]} Nbd3 {[%emt 0:00:35]} 54. Rc7+ {[%emt 0:00:22]} Kg6 {[%emt 0:00:21]} 55. Rd6+ {[%emt 0:00:24]} Rf6 {[%emt 0:00:54]} 56. Rd8 {[%emt 0:00:57]} Nf4 {[%emt 0:00:23]} 57. Rg8+ {[%emt 0:00:26]} Kh6 {[%emt 0:00:21]} 58. Rh8+ {[%emt 0:01:47]} Kg6 {[%emt 0:00:21]} 59. Rg8+ {[%emt 0:00:33]} Kh6 {[%emt 0:00:21]} 60. d6 {[%emt 0:00:32]} Ne6 {[%emt 0:01:03]} 61. Re7 {[%emt 0:00:35]} Nc6 {[%emt 0:00:28]} 62. Nf5+ {[%emt 0:00:37]} Rxf5 {[%emt 0:00:29]} 63. Rxe6+ {[%emt 0:00:21]} Kh7 {[%emt 0:00:22]} 64. Rxg4 {[%emt 0:00:25]} Rd5 {[%emt 0:00:22]} 65. d7 {[%emt 0:00:23]} Nd4 {[%emt 0:00:25]} 66. Re3 {[%emt 0:00:34]} Nf5 {[%emt 0:00:21]} 67. Rh3+ {[%emt 0:00:28]} Nh6 {[%emt 0:00:21]} 68. Rgh4 {[%emt 0:00:21]} 1-0

[Event "EWIRCC 2019"]
[Site "Monte-Carlo"]
[Date "2019.12.01"]
[Round "11.17"]
[White "Terbe, Julianna"]
[Black "Michna, Marta"]
[Result "0-1"]
[ECO "A48"]
[WhiteElo "2287"]
[BlackElo "2366"]
[Annotator "ChessBase"]
[PlyCount "102"]
[EventDate "2019.11.28"]
[EventType "swiss"]
[EventCountry "MNC"]
[SourceTitle "playchess.com"]
[Source "ChessBase"]
[SourceQuality "1"]
[TimeControl "5400+30"]

1. d4 {[%emt 1:15:12]} Nf6 {[%emt 1:15:11]} 2. Nf3 {[%emt 0:00:22]} d6 {[%emt 0:00:21]} 3. Bf4 {[%emt 0:00:26]} g6 {[%emt 0:00:27]} 4. h3 {[%emt 0:00:24]} Bg7 {[%emt 0:00:21]} 5. e3 {[%emt 0:00:21]} O-O {[%emt 0:00:23]} 6. Be2 {[%emt 0:00:21]} Nfd7 {[%emt 0:00:26]} 7. O-O {[%emt 0:00:23]} e5 {[%emt 0:00:21]} 8. Bh2 {[%emt 0:00:21]} Nc6 {[%emt 0:01:12]} 9. c4 {[%emt 0:00:32]} f5 {[%emt 0:03:14]} 10. Nc3 {[%emt 0:00:22]} e4 {[%emt 0:00:36]} 11. Nd2 {[%emt 0:00:23]} Nf6 {[%emt 0:00:23]} 12. Rc1 {[%emt 0:00:56]} h6 {[%emt 0:01:24]} 13. a3 {[%emt 0:02:05]} Kh7 {[%emt 0:00:56]} 14. b4 {[%emt 0:00:23]} Ne7 {[%emt 0:01:45]} 15. f3 {[%emt 0:03:24]} exf3 {[%emt 0:02:47]} 16. Bxf3 {[%emt 0:00:23]} g5 {[%emt 0:00:54]} 17. e4 {[%emt 0:04:35]} f4 {[%emt 0:00:21]} 18. Nb3 {[%emt 0:01:08]} Ng6 {[%emt 0:00:36]} 19. Qd3 {[%emt 0:00:42]} Nh4 {[%emt 0:00:33]} 20. Rcd1 {[%emt 0:02:08]} Kh8 {[%emt 0:00:40]} 21. e5 {[%emt 0:00:47]} dxe5 {[%emt 0:00:25]} 22. dxe5 {[%emt 0:00:26]} Qxd3 23. Rxd3 {[%emt 0:00:21]} Nd7 {[%emt 0:01:12]} 24. e6 {[%emt 0:01:09]} Ne5 {[%emt 0:00:37]} 25. e7 {[%emt 0:00:25]} Re8 {[%emt 0:01:52]} 26. Rd8 {[%emt 0:01:37]} Nhxf3+ {[%emt 0:00:29]} 27. gxf3 {[%emt 0:00:41]} Bd7 {[%emt 0:02:20]} 28. Rxa8 {[%emt 0:00:59]} Rxa8 {[%emt 0:00:21]} 29. Nc5 {[%emt 0:00:48]} Re8 {[%emt 0:01:25]} 30. Nxd7 {[%emt 0:01:37]} Nxd7 {[%emt 0:00:21]} 31. Rd1 {[%emt 0:00:21]} Rxe7 {[%emt 0:00:49]} 32. Nd5 {[%emt 0:00:20]} Rf7 {[%emt 0:00:32]} 33. Nxc7 {[%emt 0:00:50]} Ne5 {[%emt 0:00:00]} 34. Ne6 {[%emt 0:00:32]} Nxc4 {[%emt 0:02:05]} 35. a4 {[%emt 0:00:40]} Re7 {[%emt 0:00:33]} 36. Nc5 {[%emt 0:00:40]} b6 {[%emt 0:01:04]} 37. Ne4 {[%emt 0:00:21]} Kh7 {[%emt 0:00:29]} 38. h4 {[%emt 0:00:25]} Kg6 {[%emt 0:00:31]} 39. hxg5 {[%emt 0:00:23]} hxg5 {[%emt 0:00:21]} 40. Rd5 {[%emt 0:00:33]} Be5 {[%emt 0:00:30]} 41. Rd8 {[%emt 0:00:48]} a5 {[%emt 0:00:44]} 42. bxa5 {[%emt 0:00:35]} bxa5 {[%emt 0:00:25]} 43. Rg8+ {[%emt 0:00:39]} Bg7 {[%emt 0:00:45]} 44. Rc8 {[%emt 0:00:52]} Ne5 {[%emt 0:00:32]} 45. Kg2 {[%emt 0:00:35]} Rb7 {[%emt 0:00:23]} 46. Bg1 {[%emt 0:00:31]} Rb2+ {[%emt 0:00:25]} 47. Bf2 {[%emt 0:00:21]} Ra2 {[%emt 0:00:41]} 48. Ra8 {[%emt 0:00:42]} Nd3 {[%emt 0:00:55]} 49. Ra6+ {[%emt 0:00:21]} Kh5 {[%emt 0:00:25]} 50. Rxa5 {[%emt 0:00:34]} Nxf2 {[%emt 0:00:22]} 51. Nxg5 {[%emt 0:00:32]} Ne4+ {[%emt 0:00:24]} 0-1